bitfinex/quotes_SOLUSD_20240725
["timestamp","ask_amount","ask_price","bid_price","bid_amount"]
[1721934392195,5.9821,167.17,167.07,5.9854]
[1721934392399,45.0,167.19,167.06,6.7749184]
[1721934392585,5.9822,167.17,167.06,6.7749184]
[1721934392786,5.9822,167.17,167.07,5.9853]
[1721934392981,15.3441,167.2,167.11,5.984]
[1721934393183,6.452,167.21,167.08,1.19692766]
[1721934393404,5.984,167.2,167.08,1.19672935]
[1721934393568,5.9802,167.22,167.11,5.9837]
[1721934393896,420.5,167.23,167.06,0.7891184]
[1721934394100,40.0,167.21,167.06,0.7891184]
[1721934394282,5.9815,167.19,167.07,1.19703073]
[1721934394591,395.78734993,167.23,167.06,1.98594867]
[1721934394802,85.0,167.22,167.06,0.7891184]
[1721934394979,5.9823,167.16,167.06,6.7749184]
[1721934395178,5.9823,167.16,167.07,20.0]
[1721934395378,14.9542,167.18,167.06,0.7891184]
[1721934395574,5.9823,167.16,167.06,6.7748184]
[1721934395794,5.9817,167.18,167.06,0.7891184]
[1721934396104,5.9823,167.16,167.06,6.7746184]
[1721934396595,20.0,167.18,167.06,0.7891184]
[1721934396806,14.9559,167.16,167.06,0.7891184]
[1721934396992,5.983,167.14,167.06,0.7891184]
[1721934397299,51.452,167.17,167.06,0.7891184]
[1721934397601,5.9826,167.15,167.06,0.7891184]
[1721934397895,5.9822,167.16,167.06,6.7749184]
[1721934398099,51.452,167.17,167.06,0.7891184]
[1721934398479,5.9826,167.15,167.06,0.7891184]
[1721934399277,402.3528,167.19,167.08,5.9851]
[1721934399472,380.5,167.19,167.06,45.7891184]
[1721934399694,5.9818,167.18,167.08,5.985]
[1721934399994,5.9822,167.17,167.07,25.9854]
[1721934400201,386.4815,167.19,167.08,5.9851]
[1721934400384,380.5,167.21,167.09,1.19685303]
[1721934400585,386.4805,167.21,167.11,5.9839]
[1721934400789,380.5,167.21,167.12,25.9836]
[1721934401301,380.5,167.21,167.13,5.9833]
[1721934401687,380.5,167.21,167.12,20.0]
[1721934402008,5.9783,167.27,167.13,50.69929485]
[1721934402190,20.0,167.26,167.13,4.5029]
[1721934402516,7.97064795,167.25,167.15,5.9826]
[1721934402800,1.99154795,167.24,167.14,1.19646783]
[1721934402989,1.99154795,167.24,167.15,1.19638204]
[1721934403181,1.99154795,167.24,167.19,5.9812]
[1721934403384,1.99154795,167.24,167.14,20.0]
[1721934403586,1.99154795,167.24,167.15,45.0]
[1721934403905,1.99154795,167.24,167.19,5.9811]
[1721934404398,1.99154795,167.24,167.17,5.9817]
[1721934404701,1.99154795,167.24,167.18,5.9814]
[1721934404897,1.99154795,167.24,167.17,1.1961104]
[1721934405107,1.99154795,167.24,167.18,5.9815]
[1721934405279,1.99154795,167.24,167.15,1.19611117]
[1721934405480,1.99154795,167.24,167.15,21.19611117]
[1721934405687,1.99154795,167.24,167.16,45.0]
[1721934405992,1.99154795,167.24,167.17,20.0]
[1721934406184,1.99154795,167.24,167.18,45.0]
[1721934406574,1.99154795,167.24,167.21,5.9804]
[1721934406780,1.99154795,167.24,167.22,45.0]
[1721934407002,1.99154795,167.24,167.23,5.9797]
[1721934407313,386.4755,167.35,167.23,45.0]
[1721934407503,6.452,167.36,167.25,5.9789]
[1721934407813,0.65973263,167.34,167.25,5.9789]
[1721934407981,0.65973263,167.34,167.2,6.5907]
[1721934408189,0.65973263,167.34,167.25,5.9788]
[1721934408403,6.63563263,167.34,167.24,5.9793]
[1721934409111,0.65973263,167.34,167.25,5.979]
[1721934409477,6.63563263,167.34,167.23,5.9794]
[1721934409677,6.63563263,167.34,167.24,45.0]
[1721934409884,5.9768,167.32,167.22,5.98]
[1721934410102,0.65973263,167.31,167.21,20.0]
[1721934410300,0.65973263,167.31,167.21,5.9804]
[1721934410499,6.63673263,167.31,167.21,5.9804]
[1721934410888,0.65973263,167.31,167.22,5.9801]
[1721934411099,6.63673263,167.31,167.16,1.19580939]
[1721934411310,6.63673263,167.31,167.2,5.9805]
[1721934411610,5.9785,167.27,167.16,5.982]
[1721934411908,6.037,167.29,167.14,1.19622079]
[1721934412205,6.037,167.29,167.13,5.69897787]
[1721934412404,5.978,167.28,167.18,5.9812]
[1721934412606,0.65973263,167.27,167.19,5.9812]
[1721934413103,0.65973263,167.27,167.2,7.17670444]
[1721934413297,0.65973263,167.27,167.23,5.9797]
[1721934413708,0.65973263,167.27,167.24,5.9794]
[1721934413888,0.65973263,167.27,167.25,7.17429136]
[1721934414083,0.65973263,167.27,167.25,5.9787]
[1721934414283,0.65973263,167.27,167.16,1.1955883]
[1721934414507,0.65973263,167.27,167.16,66.1955883]
[1721934414684,0.65973263,167.27,167.21,5.9802]
[1721934414887,0.65973263,167.27,167.22,45.0]
[1721934415095,0.65973263,167.27,167.22,50.9801]
[1721934415294,0.65973263,167.27,167.22,45.0]
[1721934415605,0.65973263,167.27,167.2,5.9808]
[1721934415915,0.65973263,167.27,167.21,1.1959514]
[1721934416087,0.65973263,167.27,167.26,5.9787]
[1721934416706,0.65973263,167.27,167.25,5.979]
[1721934417017,0.65973263,167.27,167.26,7.17424344]
[1721934417188,0.65973263,167.27,167.26,50.9787]
[1721934417810,256.6,167.38,167.26,65.0]
[1721934418014,392.5113,167.39,167.29,5.9773]
[1721934418314,5.9744,167.38,167.28,5.9779]
[1721934418700,386.537,167.39,167.26,20.0]
[1721934418902,392.5113,167.39,167.29,5.9776]
[1721934419215,386.537,167.39,167.2,1.19529727]
[1721934419382,386.537,167.39,167.3,5.9772]
[1721934419588,392.5111,167.39,167.29,5.9775]
[1721934419809,392.5111,167.39,167.27,5.9783]
[1721934419810,5.9747,167.37,167.27,5.9783]
[1721934420310,401.4724,167.39,167.19,1.19521177]
[1721934420520,1.98488887,167.36,167.19,1.19521177]
[1721934420691,1.98488887,167.36,167.29,5.9773]
[1721934421185,1.98488887,167.36,167.19,21.19521177]
[1721934421386,1.98488887,167.36,167.27,5.9783]
[1721934421605,5.9755,167.35,167.19,1.19521177]
[1721934421786,1.98488887,167.34,167.19,1.19521177]
[1721934422209,1.98488887,167.34,167.28,5.9776]
[1721934422593,1.98488887,167.34,167.27,5.978]
[1721934422798,1.98488887,167.34,167.19,1.19521177]
[1721934423121,1.98488887,167.34,167.2,1.19528659]
[1721934423456,1.98488887,167.34,167.21,1.19519165]
[1721934423714,1.98488887,167.34,167.22,4.5029]
[1721934423923,1.98488887,167.34,167.23,46.19503974]
[1721934424220,1.98488887,167.34,167.33,5.9762]
[1721934424390,1.98488887,167.34,167.33,70.9762]
[1721934424589,6.037,167.45,167.37,5.9747]
[1721934424803,15.5457,167.48,167.33,65.0]
[1721934424804,15.5457,167.48,167.38,46.19458076]
[1721934425009,1.98488887,167.48,167.38,46.19458076]
[1721934425187,6.037,167.5,167.39,20.0]
[1721934425384,8.02188887,167.5,167.4,45.0]
[1721934425615,1.98488887,167.49,167.4,5.9736]
[1721934425835,1.98488887,167.49,167.41,45.0]
[1721934426000,1.98488887,167.49,167.39,20.0]
[1721934426192,1.98488887,167.49,167.38,1.19459413]
[1721934427108,1.98488887,167.49,167.42,5.9728]
[1721934427423,1.98488887,167.49,167.35,20.0]
[1721934427424,1.98488887,167.49,167.43,45.0]
[1721934427915,1.98488887,167.49,167.36,1.19424939]
[1721934428100,1.98488887,167.49,167.38,5.9744]
[1721934428292,1.98488887,167.49,167.39,65.0]
[1721934428489,1.98488887,167.49,167.42,5.9729]
[1721934428720,1.98488887,167.49,167.43,1.19428116]
[1721934428890,1.98488887,167.49,167.41,1.19419741]
[1721934429090,1.98488887,167.49,167.4,5.9736]
[1721934429316,1.98488887,167.49,167.39,20.0]
[1721934429517,1.98488887,167.49,167.35,1.19443282]
[1721934429733,7.95538887,167.49,167.39,5.974]
[1721934430246,7.95538887,167.49,167.38,5.9743]
[1721934430425,7.95538887,167.49,167.39,5.974]
[1721934430620,5.9709,167.48,167.38,5.9743]
[1721934430823,5.9709,167.48,167.39,45.0]
[1721934430824,7.95578887,167.48,167.39,45.0]
[1721934431128,5.9724,167.44,167.31,1.19450149]
[1721934431340,1.98488887,167.47,167.31,1.19450149]
[1721934431625,1.98488887,167.47,167.39,5.9737]
[1721934431829,1.98488887,167.47,167.4,1.19446934]
[1721934432134,5.9726,167.43,167.3,1.19447097]
[1721934432315,5.9734,167.41,167.3,5.977]
[1721934432511,1.98488887,167.41,167.3,5.9772]
[1721934432718,1.98488887,167.41,167.31,5.9767]
[1721934432917,1.98488887,167.41,167.27,1.19501572]
[1721934433540,5.9719,167.45,167.27,1.19501572]
[1721934433713,1.98488887,167.44,167.27,1.19501572]
[1721934433914,1.98488887,167.44,167.36,5.9749]
[1721934434123,1.98488887,167.44,167.37,21.19467176]
[1721934434342,1.98488887,167.44,167.39,5.974]
[1721934434838,15.9098,167.46,167.39,5.974]
[1721934435252,15.9098,167.46,167.4,1.19447179]
[1721934435417,15.9098,167.46,167.38,45.0]
[1721934435743,5.9725,167.44,167.33,5.9761]
[1721934436039,1.98488887,167.44,167.34,25.9758]
[1721934436349,1.98488887,167.44,167.35,20.0]
[1721934436643,6.037,167.38,167.24,4.5029]
[1721934436946,6.037,167.38,167.25,1.19504083]
[1721934437128,8.02188887,167.38,167.21,1.1952494]
[1721934437444,8.02188887,167.38,167.21,1.1952477]
[1721934437830,1.98488887,167.37,167.21,1.1952477]
[1721934438552,15.9098,167.36,167.2,1.19529595]
[1721934438729,5.9765,167.32,167.22,5.98]
[1721934439049,15.9098,167.36,167.16,1.19566468]
[1721934439050,1.98488887,167.31,167.16,1.19566468]
[1721934439221,6.0767,167.3,167.15,1.19566468]
[1721934439550,1.98488887,167.29,167.2,5.9808]
[1721934439758,7.96258887,167.29,167.18,5.9812]
[1721934440049,1.98488887,167.29,167.18,1.19596327]
[1721934440346,6.0767,167.3,167.18,1.19596327]
[1721934440540,15.9098,167.36,167.18,1.19596327]
[1721934440541,6.0767,167.35,167.18,1.19596327]
[1721934440730,6.0767,167.35,167.31,5.9767]
[1721934441037,6.0767,167.35,167.18,1.19596327]
[1721934441227,6.0767,167.35,167.17,65.0]
[1721934441439,8.06158887,167.35,167.25,5.979]
[1721934441737,14.03708887,167.35,167.26,65.0]
[1721934441912,14.03708887,167.35,167.23,5.9794]
[1721934441913,8.06158887,167.35,167.23,5.9794]
[1721934442316,8.06158887,167.35,167.13,1.19569683]
[1721934442539,382.48488887,167.34,167.13,1.19569683]
[1721934442726,5.978,167.28,167.18,5.9812]
[1721934442931,1.98488887,167.28,167.19,1.19596347]
[1721934443141,1.98488887,167.28,167.21,5.9801]
[1721934443335,1.98488887,167.28,167.2,5.9807]
[1721934443640,380.5,167.33,167.09,4.5029]
[1721934443641,380.5,167.33,167.12,38.98577951]
[1721934443841,5.9772,167.3,167.13,65.0]
[1721934444142,1.98488887,167.3,167.14,1.19581729]
[1721934444332,1.98488887,167.3,167.15,1.19576231]
[1721934444738,7.96228887,167.3,167.2,5.9808]
[1721934444946,1.98488887,167.29,167.2,5.9808]
[1721934445138,1.98488887,167.29,167.19,5.9811]
[1721934445324,7.96258887,167.29,167.19,5.9811]
[1721934445523,7.96258887,167.29,167.2,5.9808]
[1721934445739,7.96258887,167.29,167.18,5.9812]
[1721934445968,7.96258887,167.29,167.19,20.0]
[1721934446454,1.98488887,167.29,167.2,5.9808]
[1721934446951,1.98488887,167.29,167.21,5.9802]
[1721934447637,1.98488887,167.29,167.19,20.0]
[1721934447849,1.98488887,167.29,167.23,5.9796]
[1721934448226,1.98488887,167.29,167.2,45.0]
[1721934448432,5.9783,167.28,167.18,5.9815]
[1721934448750,15.9098,167.25,167.19,20.0]
[1721934448947,15.9098,167.25,167.1,1.19607841]
[1721934449125,15.9098,167.25,167.11,1.1961448]
[1721934449320,15.9098,167.25,167.18,5.9815]
[1721934449553,15.9098,167.25,167.11,1.1961448]
[1721934449843,1.98488887,167.24,167.17,5.9816]
[1721934450153,7.96428887,167.24,167.15,5.9823]
[1721934450762,1.98488887,167.24,167.15,5.9823]
[1721934451050,7.96428887,167.24,167.15,5.9823]
[1721934451256,7.96428887,167.24,167.15,5.9826]
[1721934451454,1.98488887,167.24,167.15,5.9826]
[1721934451752,1.98488887,167.24,167.17,5.9816]
[1721934451927,1.98488887,167.24,167.19,5.9808]
[1721934452129,1.98488887,167.24,167.16,45.0]
[1721934452352,1.98488887,167.24,167.07,1.19599258]
[1721934452546,1.98488887,167.24,167.08,1.19622823]
[1721934453428,1.98488887,167.24,167.2,5.9808]
[1721934453659,1.98488887,167.24,167.21,5.9804]
[1721934453829,1.98488887,167.24,167.08,1.19622823]
[1721934454029,1.98488887,167.24,167.08,66.19622823]
[1721934454436,1.98488887,167.24,167.2,5.9808]
[1721934454645,1.98488887,167.24,167.08,66.19622823]
[1721934454828,1.98488887,167.24,167.17,5.9817]
[1721934455153,1.98488887,167.24,167.18,1.19608174]
[1721934455469,1.98488887,167.24,167.09,1.19596753]
[1721934455761,15.9098,167.25,167.23,5.9796]
[1721934456127,15.9098,167.25,167.24,5.9794]
[1721934456333,6.0767,167.26,167.24,45.0]
[1721934456532,6.0767,167.26,167.25,7.1746502]
[1721934456755,6.0767,167.26,167.25,50.979]
[1721934456961,6.0767,167.26,167.23,5.9797]
[1721934457137,6.0767,167.26,167.25,5.979]
[1721934457333,21.9865,167.31,167.26,5.9784]
[1721934457564,21.9865,167.31,167.27,1.19545209]
[1721934458437,380.5,167.34,167.27,1.19530755]
[1721934458744,6.0767,167.36,167.33,5.9761]
[1721934458948,6.0767,167.36,167.34,7.17069708]
[1721934459130,6.0767,167.36,167.34,5.9757]
[1721934459331,21.93,167.45,167.35,1.19499737]
[1721934459556,1.98488887,167.44,167.37,5.9747]
[1721934459744,1.98488887,167.44,167.38,1.19469517]
[1721934460346,1.98488887,167.44,167.38,52.16899517]
[1721934460551,1.98488887,167.44,167.38,45.0]
[1721934460745,1.98488887,167.44,167.35,5.9754]
[1721934460946,1.98488887,167.44,167.36,20.0]
[1721934461261,1.98488887,167.44,167.34,20.0]
[1721934461451,1.98488887,167.44,167.28,1.19458961]
[1721934461765,10.96201955,167.44,167.29,1.19508528]
[1721934461946,7.95718887,167.44,167.33,5.9758]
[1721934462129,1.98488887,167.44,167.21,2.46441334]
[1721934462334,5.9741,167.39,167.29,5.9775]
[1721934462557,7.95938887,167.38,167.28,5.9779]
[1721934463061,1.98488887,167.38,167.28,5.9779]
[1721934463573,6.0767,167.37,167.28,5.9779]
[1721934463740,15.8533,167.36,167.28,5.9779]
[1721934464156,15.8533,167.36,167.3,5.9771]
[1721934464364,15.8533,167.36,167.29,5.9776]
[1721934464564,15.8533,167.36,167.19,1.19524359]
[1721934464737,17.83818887,167.36,167.27,5.978]
[1721934465060,17.83818887,167.36,167.28,5.9778]
[1721934465355,17.83818887,167.36,167.29,1.19533665]
[1721934465563,17.83818887,167.36,167.3,5.9771]
[1721934465942,17.83818887,167.36,167.2,1.195216]
[1721934466154,1.98488887,167.36,167.33,5.9758]
[1721934466342,1.98488887,167.36,167.23,1.1949529]
[1721934466543,6.0767,167.37,167.24,1.19495268]
[1721934466741,6.0767,167.37,167.31,5.9766]
[1721934466939,6.0767,167.37,167.32,20.0]
[1721934467146,6.0767,167.37,167.34,5.9755]
[1721934467340,6.0767,167.37,167.33,1.19494352]
[1721934467548,15.8533,167.4,167.39,5.974]
[1721934468148,6.0767,167.43,167.4,5.9735]
[1721934468353,6.0767,167.43,167.41,1.19451814]
[1721934468863,6.0767,167.43,167.4,5.9737]
[1721934469167,6.0767,167.43,167.41,1.19451897]
[1721934469874,6.0767,167.43,167.38,5.9744]
[1721934470170,6.0767,167.43,167.39,7.1684841]
[1721934470472,6.0767,167.43,167.4,1.19452733]
[1721934470845,6.0767,167.43,167.3,1.19452765]
[1721934471145,6.0767,167.43,167.37,5.9744]
[1721934471349,6.0767,167.43,167.38,65.0]
[1721934472162,6.0767,167.43,167.39,5.974]
[1721934472367,6.0767,167.43,167.38,20.0]
[1721934472664,6.0767,167.43,167.38,5.9744]
[1721934472867,6.0767,167.43,167.31,1.19467367]
[1721934473065,8.06158887,167.43,167.34,5.9755]
[1721934473367,14.03418887,167.43,167.32,5.9762]
[1721934473869,5.9731,167.42,167.32,5.9762]
[1721934474051,8.06158887,167.43,167.32,1.19506701]
[1721934474052,1.98488887,167.41,167.32,1.19506701]
[1721934474367,1.98488887,167.41,167.33,5.9759]
[1721934474681,1.98488887,167.41,167.32,5.9765]
[1721934475042,1.98488887,167.41,167.31,5.9769]
[1721934475450,7.95818887,167.41,167.31,5.9769]
[1721934475775,5.9741,167.39,167.3,5.9772]
[1721934476062,1.98488887,167.41,167.23,2.39953761]
[1721934476063,1.98488887,167.38,167.24,1.19520235]
[1721934476650,22.2775,167.37,167.24,1.19520235]
[1721934476976,1.98488887,167.36,167.2,1.1954463]
[1721934477353,46.98488887,167.36,167.16,1.19556846]
[1721934477559,5.9755,167.35,167.25,5.979]
[1721934477755,1.98488887,167.34,167.25,5.979]
[1721934478163,5.9769,167.31,167.16,1.19556846]
[1721934478364,1.98488887,167.3,167.16,1.19556846]
[1721934478763,1.98488887,167.3,167.21,5.9803]
[1721934478957,1.98488887,167.3,167.18,1.19577901]
[1721934479195,1.98488887,167.3,167.23,5.9797]
[1721934479370,1.98488887,167.3,167.24,5.9794]
[1721934479559,1.98488887,167.3,167.25,5.979]
[1721934479879,1.98488887,167.3,167.19,1.19554504]
[1721934480249,6.4242,167.33,167.2,1.19562989]
[1721934480564,6.4242,167.33,167.16,37.79]
[1721934480775,1.98488887,167.32,167.17,66.195679]
[1721934480983,1.98488887,167.32,167.18,1.19578078]
[1721934481562,1.98488887,167.32,167.26,5.9786]
[1721934482166,1.98488887,167.32,167.23,5.9794]
[1721934482472,1.98488887,167.32,167.24,65.0]
[1721934482673,1.98488887,167.32,167.13,1.19578368]
[1721934482972,5.978,167.28,167.18,5.9812]
[1721934483172,7.96288887,167.28,167.18,5.9812]
[1721934483548,1.98488887,167.28,167.19,5.981]
[1721934484178,1.98488887,167.28,167.2,1.19598321]
[1721934484381,1.98488887,167.28,167.22,5.9801]
[1721934484591,1.98488887,167.28,167.22,1.19579778]
[1721934484876,15.8533,167.31,167.22,1.19579778]
[1721934485174,15.8533,167.31,167.27,5.9783]
[1721934485479,15.8533,167.31,167.14,21.19566896]
[1721934485480,15.8533,167.31,167.26,5.9786]
[1721934485654,15.8533,167.31,167.24,5.9791]
[1721934485854,15.8533,167.31,167.25,70.979]
[1721934486055,15.8533,167.31,167.25,50.979]
[1721934486255,15.8533,167.31,167.26,20.0]
[1721934486979,15.8533,167.31,167.22,5.9798]
[1721934487177,5.9772,167.3,167.23,20.0]
[1721934487476,1.98488887,167.29,167.13,1.19565023]
[1721934488148,1.98488887,167.29,167.2,5.9808]
[1721934488353,6.4242,167.28,167.08,37.79]
[1721934488655,1.98488887,167.27,167.11,1.1962144]
[1721934488962,1.98488887,167.27,167.19,5.981]
[1721934489167,1.98488887,167.27,167.2,1.19594396]
[1721934489369,1.98488887,167.27,167.11,1.19577891]
[1721934489680,1.98488887,167.27,167.13,5.9833]
[1721934489681,5.9798,167.23,167.13,5.9833]
[1721934489860,6.4242,167.21,167.06,0.7891184]
[1721934490474,18.17178887,167.2,167.06,0.7891184]
[1721934490659,7.96618887,167.19,167.09,5.9847]
[1721934490986,7.96618887,167.19,167.06,0.7891184]
[1721934491157,1.98488887,167.19,167.06,0.7891184]
[1721934491359,1.98488887,167.19,167.09,5.9847]
[1721934491565,1.98488887,167.19,167.08,5.985]
[1721934491869,1.98488887,167.19,167.06,1.98575384]
[1721934492072,1.98488887,167.19,167.07,1.19659851]
[1721934492380,1.98488887,167.19,167.06,1.98555216]
[1721934492575,1.98488887,167.19,167.09,5.9845]
[1721934492779,1.98488887,167.18,167.11,5.984]
[1721934492957,1.98488887,167.18,167.1,50.9843]
[1721934493470,1.98488887,167.18,167.11,5.984]
[1721934493678,1.98488887,167.18,167.1,50.9843]
[1721934493977,1.98488887,167.18,167.1,45.0]
[1721934494359,1.98488887,167.18,167.1,50.9843]
[1721934494557,5.982,167.17,167.07,5.9854]
[1721934494783,6.4242,167.14,167.06,0.7891184]
[1721934495165,6.4242,167.14,167.07,7.18199001]
[1721934495365,6.4242,167.14,167.07,5.9852]
[1721934495578,6.4242,167.14,167.06,6.7748184]
[1721934495893,6.4242,167.14,167.06,6.7749184]
[1721934496058,16.1869,167.13,167.06,0.7891184]
[1721934496261,5.9841,167.11,167.06,0.7891184]
[1721934496575,5.9837,167.12,167.06,0.7891184]
[1721934496777,22.1702,167.13,167.06,0.7891184]
[1721934497090,7.96868887,167.12,167.06,0.7891184]
[1721934497263,1.98488887,167.11,167.06,0.7891184]
[1721934497584,6.4242,167.14,167.13,5.9833]
[1721934497793,6.4242,167.14,167.08,1.19651553]
[1721934499377,6.4242,167.14,167.07,1.19646255]
[1721934499785,6.4242,167.14,167.08,1.19653622]
[1721934499989,6.4242,167.14,167.07,1.19653687]
[1721934500284,6.4242,167.14,167.06,0.7891184]
[1721934500458,6.4242,167.14,167.06,1.98566041]
[1721934500662,6.4242,167.14,167.06,21.98566041]
[1721934500882,6.4242,167.14,167.07,45.0]
[1721934501082,6.4242,167.14,167.08,21.19652686]
[1721934501379,6.4242,167.14,167.09,45.0]
[1721934501685,6.4242,167.14,167.1,20.0]
[1721934501896,6.4242,167.14,167.06,0.7891184]
[1721934502097,8.40908887,167.14,167.06,0.7891184]
[1721934502465,6.4242,167.14,167.06,0.7891184]
[1721934502678,6.4242,167.14,167.07,1.19656028]
[1721934502885,6.4242,167.14,167.08,1.19655198]
[1721934503064,6.4242,167.14,167.08,1.19651323]
[1721934503265,6.4242,167.14,167.07,1.19655177]
[1721934503679,6.4242,167.14,167.06,0.7891184]
[1721934503680,6.4242,167.14,167.08,1.1965521]
[1721934505386,6.4242,167.14,167.08,1.19654487]
[1721934505989,6.4242,167.14,167.07,1.19656147]
[1721934506394,6.4242,167.14,167.08,1.19656164]
[1721934506690,6.4242,167.14,167.08,46.19656164]
[1721934506887,6.4242,167.14,167.09,20.0]
[1721934507088,6.4242,167.14,167.1,45.0]
[1721934507287,6.4242,167.14,167.11,20.0]
[1721934507474,6.4242,167.14,167.12,45.0]
[1721934507670,6.4242,167.14,167.11,20.0]
[1721934507984,6.4242,167.14,167.07,1.19649735]
[1721934508284,6.4242,167.14,167.08,1.19649029]
[1721934509693,6.4242,167.14,167.07,1.19648378]
[1721934510074,6.4242,167.14,167.06,46.98575014]
[1721934510278,6.4242,167.14,167.06,1.98575014]
[1721934510479,6.4242,167.14,167.06,0.7891184]
[1721934512606,6.4242,167.14,167.07,1.19667194]
[1721934512905,6.4242,167.14,167.08,1.19660629]
[1721934513200,16.1869,167.18,167.08,32.17660629]
[1721934513502,16.1869,167.18,167.09,65.0]
[1721934513690,6.5773,167.19,167.09,65.0]
[1721934513691,6.5773,167.19,167.1,1.19622037]
[1721934513884,6.5773,167.19,167.11,1.19614203]
[1721934514900,22.7642,167.23,167.12,30.98]
[1721934515087,22.7642,167.23,167.13,66.19584534]
[1721934515480,22.7642,167.23,167.13,86.19584534]
[1721934515674,30.98,167.36,167.16,30.98]
[1721934515675,22.7642,167.28,167.16,30.98]
[1721934516018,22.7642,167.28,167.17,66.19551014]
[1721934516299,22.7642,167.28,167.18,1.19550644]
[1721934517096,22.7642,167.28,167.17,66.19576966]
[1721934517276,22.7642,167.28,167.18,1.19585584]
[1721934518093,22.7642,167.28,167.17,65.0]
[1721934518300,22.7642,167.28,167.17,66.19565949]
[1721934518605,22.7642,167.28,167.18,1.19587474]
[1721934519284,22.7642,167.28,167.19,30.98]
[1721934519479,22.7642,167.28,167.2,66.19549714]
[1721934519682,6.5773,167.28,167.21,1.19549755]
[1721934520280,6.5773,167.28,167.21,1.19556591]
[1721934520707,6.5773,167.28,167.17,1.19561515]
[1721934521009,6.5773,167.28,167.18,1.19561493]
[1721934521496,6.5773,167.32,167.19,1.19561677]
[1721934522207,6.5773,167.32,167.19,21.19561677]
[1721934522507,6.5773,167.32,167.2,45.0]
[1721934522693,6.5773,167.32,167.21,21.19550072]
[1721934522881,6.5773,167.32,167.22,45.0]
[1721934523080,6.5773,167.32,167.23,20.0]
[1721934523315,6.5773,167.32,167.21,20.0]
[1721934523809,6.5773,167.32,167.22,1.19553275]
[1721934524885,6.5773,167.32,167.23,1.19534077]
[1721934525084,6.5773,167.32,167.19,21.19531134]
[1721934525582,6.5773,167.32,167.19,1.19531134]
[1721934526317,6.5773,167.32,167.17,1.19573539]
[1721934526477,1.98488887,167.31,167.17,1.19573539]
[1721934526801,1.98488887,167.31,167.18,1.19585055]
[1721934529614,6.5773,167.32,167.18,1.19585055]
[1721934529988,6.5773,167.32,167.19,30.98]
[1721934530316,6.5773,167.32,167.2,66.19537701]
[1721934530507,6.5773,167.32,167.21,1.19532376]
[1721934532994,6.5773,167.32,167.15,1.19553376]
[1721934534496,6.5773,167.32,167.16,30.98]
[1721934534706,6.5773,167.32,167.17,46.19538052]
[1721934534904,6.5773,167.32,167.18,21.19561329]
[1721934535086,6.5773,167.32,167.18,1.19561329]
[1721934535286,6.5773,167.32,167.17,20.0]
[1721934535287,6.5773,167.32,167.19,1.19563937]
[1721934535504,6.5773,167.32,167.17,20.0]
[1721934536287,6.5773,167.32,167.18,45.0]
[1721934536489,6.5773,167.32,167.19,21.19561562]
[1721934536697,6.5773,167.32,167.2,45.0]
[1721934536901,6.5773,167.32,167.21,20.0]
[1721934537090,6.5773,167.32,167.22,45.0]
[1721934537286,6.5773,167.32,167.23,21.19563692]
[1721934537487,6.5773,167.32,167.24,46.19540063]
[1721934537908,6.5773,167.32,167.25,20.0]
[1721934538221,6.5773,167.32,167.26,45.0]
[1721934538417,6.5773,167.32,167.27,1.1953137]
[1721934538705,6.5773,167.32,167.27,21.1953137]
[1721934538892,6.5773,167.32,167.28,45.0]
[1721934539092,6.5773,167.32,167.29,20.0]
[1721934539308,6.5773,167.32,167.3,45.0]
[1721934539494,6.5773,167.32,167.29,20.0]
[1721934539697,6.5773,167.32,167.3,45.0]
[1721934540410,6.5773,167.32,167.29,20.0]
[1721934540614,6.5773,167.32,167.25,1.19526812]
[1721934541502,6.5773,167.32,167.26,1.19516337]
[1721934541928,6.5773,167.32,167.22,1.19518734]
[1721934542105,6.5773,167.32,167.22,46.19518734]
[1721934542420,6.5773,167.32,167.23,20.0]
[1721934542634,6.5773,167.32,167.24,1.19523624]
[1721934543115,6.5773,167.32,167.21,2.46095355]